{"text_format":"1","workbook":"xlsx","n_sheets":3,"sheets":["Общий график монтажей","Бригада 1","Бригада 2"],"not_rendered":{"charts":0,"images":0,"macros":1,"external_links":1,"defined_names":0,"comments":0,"pivot_tables":0},"unopened":[],"bounds":{"document_bytes":16777216,"sheet_cells":100000,"rows_first":2000,"rows_last":500,"rows_between":2000,"halvings":0,"cell_chars":16384,"cell_head_chars":4096},"cells_cut":0,"cells_raw":0,"read":"whole","date_system":"1900"}

{"sheet":"Общий график монтажей","index":0,"n_rows":190,"n_cols":20,"rows_kept":190,"cut":false,"hidden":false,"merged":[[0,0,1,0],[0,2,1,2],[0,3,1,3],[0,4,1,4],[0,5,1,5],[0,19,1,19],[189,1,189,6],[0,7,0,13],[0,14,1,14],[0,15,1,15],[0,16,1,16],[0,17,1,17],[0,18,1,18],[0,6,1,6]]}
["Выбор в М/Л","Дата ","Клиент","Контактное лицо","Телефон клиента","Город / нас пункт","Адрес монтажа","Вид работ",null,null,null,null,null,null,"Менеджер","Телефон менеджера ","Монтажная бригада","Статус","Старший бригады","Деньги в кассе"]
[null,"монтажа",null,null,null,null,null,"Демонтаж","Монтаж","Микротик, сигнализация","Сотлайн, удаленка, стат IP","ТО","Домофон","Исправление"]
[null,"2015-07-01","ООО \"Вымпел\"",null,null,null," ",null,null,null,null,null,null,null,null,null,"Бригада 1","Завершен",{"$f":"IF(Q3=0,\" \",IF(Q3=\"Бригада 1\",\"Приезжев С. П.\",\"БабинС.Ф.\"))","v":"Приезжев С. П."}]
[null,"2015-07-01","ИП Савин",null,null,null,null,null,null,null,null,null,null,null,null,null,"Бригада 1","Завершен","Приезжев С. П."]
[null,"2015-07-02","ООО \"Зорька\"",null,null,null,null,null,null,null,null,null,null,null,null,null,"Бригада 2","Завершен","БабинС.Ф."]
[null,"2015-07-02","ООО \"Крот\"",null,null,null,null,null,null,null,null,null,null,null,null,null,"Бригада 2","Завершен","БабинС.Ф."]
[null,null,null,null,null,null,null,null,null,null,null,null,null,null,null,null,null,null," "]
[null,null,null,null,null,null,null,null,null,null,null,null,null,null,null,null,null,null," "]
[null,null,null,null,null,null,null,null,null,null,null,null,null,null,null,null,null,null," "]
[null,null,null,null,null,null,null,null,null,null,null,null,null,null,null,null,null,null," "]
[null,null,null,null,null,null,null,null,null,null,null,null,null,null,null,null,null,null," "]
[null,null,null,null,null,null,null,null,null,null,null,null,null,null,null,null,null,null," "]
[null,null,null,null,null,null,null,null,null,null,null,null,null,null,null,null,null,null," "]
[null,null,null,null,null,null,null,null,null,null,null,null,null,null,null,null,null,null," "]
[null,null,null,null,null,null,null,null,null,null,null,null,null,null,null,null,null,null," "]
[null,null,null,null,null,null,null,null,null,null,null,null,null,null,null,null,null,null," "]
[null,null,null,null,null,null,null,null,null,null,null,null,null,null,null,null,null,null," "]
[null,null,null,null,null,null,null,null,null,null,null,null,null,null,null,null,null,null," "]
[null,null,null,null,null,null,null,null,null,null,null,null,null,null,null,null,null,null," "]
[null,null,null,null,null,null,null,null,null,null,null,null,null,null,null,null,null,null," "]
[null,null,null,null,null,null,null,null,null,null,null,null,null,null,null,null,null,null," "]
[null,null,null,null,null,null,null,null,null,null,null,null,null,null,null,null,null,null," "]
[null,null,null,null,null,null,null,null,null,null,null,null,null,null,null,null,null,null," "]
[null,null,null,null,null,null,null,null,null,null,null,null,null,null,null,null,null,null," "]
[null,null,null,null,null,null,null,null,null,null,null,null,null,null,null,null,null,null," "]
[null,null,null,null,null,null,null,null,null,null,null,null,null,null,null,null,null,null," "]
[null,null,null,null,null,null,null,null,null,null,null,null,null,null,null,null,null,null," "]
[null,null,null,null,null,null,null,null,null,null,null,null,null,null,null,null,null,null," "]
[null,null,null,null,null,null,null,null,null,null,null,null,null,null,null,null,null,null," "]
[null,null,null,null,null,null,null,null,null,null,null,null,null,null,null,null,null,null," "]
[null,null,null,null,null,null,null,null,null,null,null,null,null,null,null,null,null,null," "]
[null,null,null,null,null,null,null,null,null,null,null,null,null,null,null,null,null,null," "]
[null,null,null,null,null,null,null,null,null,null,null,null,null,null,null,null,null,null," "]
[null,null,null,null,null,null,null,null,null,null,null,null,null,null,null,null,null,null," "]
[null,null,null,null,null,null,null,null,null,null,null,null,null,null,null,null,null,null," "]
[null,null,null,null,null,null,null,null,null,null,null,null,null,null,null,null,null,null," "]
[null,null,null,null,null,null,null,null,null,null,null,null,null,null,null,null,null,null," "]
[null,null,null,null,null,null,null,null,null,null,null,null,null,null,null,null,null,null," "]
[null,null,null,null,null,null,null,null,null,null,null,null,null,null,null,null,null,null," "]
[null,null,null,null,null,null,null,null,null,null,null,null,null,null,null,null,null,null," "]
[null,null,null,null,null,null,null,null,null,null,null,null,null,null,null,null,null,null," "]
[null,null,null,null,null,null,null,null,null,null,null,null,null,null,null,null,null,null," "]
[null,null,null,null,null,null,null,null,null,null,null,null,null,null,null,null,null,null," "]
[null,null,null,null,null,null,null,null,null,null,null,null,null,null,null,null,null,null," "]
[null,null,null,null,null,null,null,null,null,null,null,null,null,null,null,null,null,null," "]
[null,null,null,null,null,null,null,null,null,null,null,null,null,null,null,null,null,null," "]
[null,null,null,null,null,null,null,null,null,null,null,null,null,null,null,null,null,null," "]
[null,null,null,null,null,null,null,null,null,null,null,null,null,null,null,null,null,null," "]
[null,null,null,null,null,null,null,null,null,null,null,null,null,null,null,null,null,null," "]
[null,null,null,null,null,null,null,null,null,null,null,null,null,null,null,null,null,null," "]
[null,null,null,null,null,null,null,null,null,null,null,null,null,null,null,null,null,null," "]
[null,null,null,null,null,null,null,null,null,null,null,null,null,null,null,null,null,null," "]
[null,null,null,null,null,null,null,null,null,null,null,null,null,null,null,null,null,null," "]
[null,null,null,null,null,null,null,null,null,null,null,null,null,null,null,null,null,null," "]
[null,null,null,null,null,null,null,null,null,null,null,null,null,null,null,null,null,null," "]
[null,null,null,null,null,null,null,null,null,null,null,null,null,null,null,null,null,null," "]
[null,null,null,null,null,null,null,null,null,null,null,null,null,null," ",null,null,null," "]
[null,null,null,null,null,null,null,null,null,null,null,null,null,null," ",null,null,null," "]
[null,null,null,null,null,null,null,null,null,null,null,null,null,null,null,null,null,null," "]
[null,null,null,null,null,null,null,null,null,null,null,null,null,null,null,null,null,null," "]
[null,null,null,null,null,null,null,null,null,null,null,null,null,null,null,null,null,null," "]
[null,null,null,null,null,null,null,null,null,null,null,null,null,null,null,null,null,null," "]
[null,null,null,null,null,null,null,null,null,null,null,null,null,null,null,null,null,null," "]
[null,null,null,null,null,null,null,null,null,null,null,null,null,null,null,null,null,null," "]
[null,null,null,null,null,null,null,null,null,null,null,null,null,null,null,null,null,null," "]
[null,null,null,null,null,null,null,null,null,null,null,null,null,null,null,null,null,null," "]
[null,null,null,null,null,null,null,null,null,null,null,null,null,null,null,null,null,null," "]
[null,null,null,null,null,null,null,null,null,null,null,null,null,null,null,null,null,null,{"$f":"IF(Q68=0,\" \",IF(Q68=\"Бригада 1\",\"Приезжев С. П.\",\"БабинС.Ф.\"))","v":" "}]
[null,null,null,null,null,null,null,null,null,null,null,null,null,null,null,null,null,null," "]
[null,null,null,null,null,null,null,null,null,null,null,null,null,null,null,null,null,null," "]
[null,null,null,null,null,null,null,null,null,null,null,null,null,null,null,null,null,null," "]
[null,null,null,null,null,null,null,null,null,null,null,null,null,null,null,null,null,null," "]
[null,null,null,null,null,null,null,null,null,null,null,null,null,null,null,null,null,null," "]
[null,null,null,null,null,null,null,null,null,null,null,null,null,null,null,null,null,null," "]
[null,null,null,null,null,null,null,null,null,null,null,null,null,null,null,null,null,null," "]
[null,null,null,null,null,null,null,null,null,null,null,null,null,null,null,null,null,null," "]
[null,null,null,null,null,null,null,null,null,null,null,null,null,null,null,null,null,null," "]
[null,null,null,null,null,null,null,null,null,null,null,null,null,null,null,null,null,null," "]
[null,null,null,null,null,null,null,null,null,null,null,null,null,null,null,null,null,null," "]
[null,null,null,null,null,null,null,null,null,null,null,null,null,null,null,null,null,null," "]
[null,null,null,null,null,null,null,null,null,null,null,null,null,null,null,null,null,null," "]
[null,null,null,null,null,null,null,null,null,null,null,null,null,null,null,null,null,null," "]
[null,null,null,null,null,null,null,null,null,null,null,null,null,null,null,null,null,null," "]
[null,null,null,null,null,null,null,null,null,null,null,null,null,null,null,null,null,null," "]
[null,null,null,null,null,null,null,null,null,null,null,null,null,null,null,null,null,null," "]
[null,null,null,null,null,null,null,null,null,null,null,null,null,null,null,null,null,null," "]
[null,null,null,null,null,null,null,null,null,null,null,null,null,null,null,null,null,null," "]
[null,null,null,null,null,null,null,null,null,null,null,null,null,null,null,null,null,null," "]
[null,null,null,null,null,null,null,null,null,null,null,null,null,null,null,null,null,null," "]
[null,null,null,null,null,null,null,null,null,null,null,null,null,null,null,null,null,null," "]
[null,null,null,null,null,null,null,null,null,null,null,null,null,null,null,null,null,null," "]
[null,null,null,null,null,null,null,null,null,null,null,null,null,null,null,null,null,null," "]
[null,null,null,null,null,null,null,null,null,null,null,null,null,null,null,null,null,null," "]
[null,null,null,null,null,null,null,null,null,null,null,null,null,null,null,null,null,null," "]
[null,null,null,null,null,null,null,null,null,null,null,null,null,null,null,null,null,null," "]
[null,null,null,null,null,null,null,null,null,null,null,null,null,null,null,null,null,null," "]
[null,null,null,null,null,null,null,null,null,null,null,null,null,null,null,null,null,null," "]
[null,null,null,null,null,null,null,null,null,null,null,null,null,null,null,null,null,null," "]
[null,null,null,null,null,null,null,null,null,null,null,null,null,null,null,null,null,null," "]
[null,null,null,null,null,null,null,null,null,null,null,null,null,null,null,null,null,null," "]
[null,null,null,null,null,null,null,null,null,null,null,null,null,null,null,null,null,null," "]
[null,null,null,null,null,null,null,null,null,null,null,null,null,null,null,null,null,null," "]
[null,null,null,null,null,null,null,null,null,null,null,null,null,null,null,null,null,null," "]
[null,null,null,null,null,null,null,null,null,null,null,null,null,null,null,null,null,null," "]
[null,null,null,null,null,null,null,null,null,null,null,null,null,null,null,null,null,null," "]
[null,null,null,null,null,null,null,null,null,null,null,null,null,null,null,null,null,null," "]
[null,null,null,null,null,null,null,null,null,null,null,null,null,null,null,null,null,null," "]
[null,null,null,null,null,null,null,null,null,null,null,null,null,null,null,null,null,null," "]
[null,null,null,null,null,null,null,null,null,null,null,null,null,null,null,null,null,null," "]
[null,null,null,null,null,null,null,null,null,null,null,null,null,null,null,null,null,null," "]
[null,null,null,null,null,null,null,null,null,null,null,null,null,null,null,null,null,null," "]
[null,null,null,null,null,null,null,null,null,null,null,null,null,null,null,null,null,null," "]
[null,null,null,null,null,null,null,null,null,null,null,null,null,null,null,null,null,null," "]
[null,null,null,null,null,null,null,null,null,null,null,null,null,null,null,null,null,null," "]
[null,null,null,null,null,null,null,null,null,null,null,null,null,null,null,null,null,null," "]
[null,null,null,null,null,null,null,null,null,null,null,null,null,null,null,null,null,null," "]
[null,null,null,null,null,null,null,null,null,null,null,null,null,null,null,null,null,null," "]
[null,null,null,null,null,null,null,null,null,null,null,null,null,null,null,null,null,null," "]
[null,null,null,null,null,null,null,null,null,null,null,null,null,null,null,null,null,null," "]
[null,null,null,null,null,null,null,null,null,null,null,null,null,null,null,null,null,null," "]
[null,null,null,null,null,null,null,null,null,null,null,null,null,null,null,null,null,null," "]
[null,null,null,null,null,null,null,null,null,null,null,null,null,null,null,null,null,null," "]
[null,null,null,null,null,null,null,null,null,null,null,null,null,null,null,null,null,null," "]
[null,null,null,null,null,null,null,null,null,null,null,null,null,null,null,null,null,null," "]
[null,null,null,null,null,null,null,null,null,null,null,null,null,null,null,null,null,null," "]
[null,null,null,null,null,null,null,null,null,null,null,null,null,null,null,null,null,null," "]
[null,null,null,null,null,null,null,null,null,null,null,null,null,null,null,null,null,null," "]
[null,null,null,null,null,null,null,null,null,null,null,null,null,null,null,null,null,null," "]
[null,null,null,null,null,null,null,null,null,null,null,null,null,null,null,null,null,null," "]
[null,null,null,null,null,null,null,null,null,null,null,null,null,null,null,null,null,null," "]
[null,null,null,null,null,null,null,null,null,null,null,null,null,null,null,null,null,null," "]
[null,null,null,null,null,null,null,null,null,null,null,null,null,null,null,null,null,null,{"$f":"IF(Q132=0,\" \",IF(Q132=\"Бригада 1\",\"Приезжев С. П.\",\"БабинС.Ф.\"))","v":" "}]
[null,null,null,null,null,null,null,null,null,null,null,null,null,null,null,null,null,null," "]
[null,null,null,null,null,null,null,null,null,null,null,null,null,null,null,null,null,null," "]
[null,null,null,null,null,null,null,null,null,null,null,null,null,null,null,null,null,null," "]
[null,null,null,null,null,null,null,null,null,null,null,null,null,null,null,null,null,null," "]
[null,null,null,null,null,null,null,null,null,null,null,null,null,null,null,null,null,null," "]
[null,null,null,null,null,null,null,null,null,null,null,null,null,null,null,null,null,null," "]
[null,null,null,null,null,null,null,null,null,null,null,null,null,null,null,null,null,null," "]
[null,null,null,null,null,null,null,null,null,null,null,null,null,null,null,null,null,null," "]
[null,null,null,null,null,null,null,null,null,null,null,null,null,null,null,null,null,null," "]
[null,null,null,null,null,null,null,null,null,null,null,null,null,null,null,null,null,null," "]
[null,null,null,null,null,null,null,null,null,null,null,null,null,null,null,null,null,null," "]
[null,null,null,null,null,null,null,null,null,null,null,null,null,null,null,null,null,null," "]
[null,null,null,null,null,null,null,null,null,null,null,null,null,null,null,null,null,null," "]
[null,null,null,null,null,null,null,null,null,null,null,null,null,null,null,null,null,null," "]
[null,null,null,null,null,null,null,null,null,null,null,null,null,null,null,null,null,null," "]
[null,null,null,null,null,null,null,null,null,null,null,null,null,null,null,null,null,null," "]
[null,null,null,null,null,null,null,null,null,null,null,null,null,null,null,null,null,null," "]
[null,null,null,null,null,null,null,null,null,null,null,null,null,null,null,null,null,null," "]
[null,null,null,null,null,null,null,null,null,null,null,null,null,null,null,null,null,null," "]
[null,null,null,null,null,null,null,null,null,null,null,null,null,null,null,null,null,null," "]
[null,null,null,null,null,null,null,null,null,null,null,null,null,null,null,null,null,null," "]
[null,null,null,null,null,null,null,null,null,null,null,null,null,null,null,null,null,null," "]
[null,null,null,null,null,null,null,null,null,null,null,null,null,null,null,null,null,null," "]
[null,null,null,null,null,null,null,null,null,null,null,null,null,null,null,null,null,null," "]
[null,null,null,null,null,null,null,null,null,null,null,null,null,null,null,null,null,null," "]
[null,null,null,null,null,null,null,null,null,null,null,null,null,null,null,null,null,null," "]
[null,null,null,null,null,null,null,null,null,null,null,null,null,null,null,null,null,null," "]
[null,null,null,null,null,null,null,null,null,null,null,null,null,null,null,null,null,null," "]
[null,null,null,null,null,null,null,null,null,null,null,null,null,null,null,null,null,null," "]
[null,null,null,null,null,null,null,null,null,null,null,null,null,null,null,null,null,null," "]
[null,null,null,null,null,null,null,null,null,null,null,null,null,null,null,null,null,null," "]
[null,null,null,null,null,null,null,null,null,null,null,null,null,null,null,null,null,null," "]
[null,null,null,null,null,null,null,null,null,null,null,null,null,null,null,null,null,null," "]
[null,null,null,null,null,null,null,null,null,null,null,null,null,null,null,null,null,null," "]
[null,null,null,null,null,null,null,null,null,null,null,null,null,null,null,null,null,null," "]
[null,null,null,null,null,null,null,null,null,null,null,null,null,null,null,null,null,null," "]
[null,null,null,null,null,null,null,null,null,null,null,null,null,null,null,null,null,null," "]
[null,null,null,null,null,null,null,null,null,null,null,null,null,null,null,null,null,null," "]
[null,null,null,null,null,null,null,null,null,null,null,null,null,null,null,null,null,null," "]
[null,null,null,null,null,null,null,null,null,null,null,null,null,null,null,null,null,null," "]
[null,null,null,null,null,null,null,null,null,null,null,null,null,null,null,null,null,null," "]
[null,null,null,null,null,null,null,null,null,null,null,null,null,null,null,null,null,null," "]
[null,null,null,null,null,null,null,null,null,null,null,null,null,null,null,null,null,null," "]
[null,null,null,null,null,null,null,null,null,null,null,null,null,null,null,null,null,null," "]
[null,null,null,null,null,null,null,null,null,null,null,null,null,null,null,null,null,null," "]
[null,null,null,null,null,null,null,null,null,null,null,null,null,null,null,null,null,null," "]
[null,null,null,null,null,null,null,null,null,null,null,null,null,null,null,null,null,null," "]
[null,null,null,null,null,null,null,null,null,null,null,null,null,null,null,null,null,null," "]
[null,null,null,null,null,null,null,null,null,null,null,null,null,null,null,null,null,null," "]
[null,null,null,null,null,null,null,null,null,null,null,null,null,null,null,null,null,null," "]
[null,null,null,null,null,null,null,null,null,null,null,null,null,null,null,null,null,null," "]
[null,null,null,null,null,null,null,null,null,null,null,null,null,null,null,null,null,null," "]
[null,null,null,null,null,null,null,null,null,null,null,null,null,null,null,null,null,null," "]
[null,null,null,null,null,null,null,null,null,null,null,null,null,null,null,null,null,null," "]
[null,null,null,null,null,null,null,null,null,null,null,null,null,null,null,null,null,null," "]
[null,null,null,null,null,null,null,null,null,null,null,null,null,null,null,null,null,null," "]
[null,null,null,null,null,null,null,null,null,null,null,null,null,null,null,null,null,null," "]
[null,null,null,null,null,null,null,{"$f":"SUM(H3:H189)","v":0},{"$f":"SUM(I3:I189)","v":0},0,0,0,0,0]

{"sheet":"Бригада 1","index":1,"n_rows":47,"n_cols":23,"rows_kept":47,"cut":false,"hidden":false,"merged":[[4,10,5,11],[0,2,0,19],[1,0,2,1],[1,5,1,6],[1,7,1,12],[3,0,3,2],[3,18,6,18],[3,19,6,19],[4,12,5,13],[4,14,5,15],[4,16,5,17],[5,4,5,5],[5,6,5,7],[40,19,40,22],[38,0,39,0],[38,1,38,2],[39,1,39,2],[40,0,40,17],[3,20,6,20],[3,21,6,21],[3,22,6,22],[4,0,6,0],[4,1,6,1],[4,2,6,2],[4,3,6,3],[4,4,4,7],[4,8,5,9],[41,0,41,1],[41,3,41,4],[41,5,41,14],[41,16,41,20],[46,3,46,20],[43,0,43,1],[43,3,43,4],[43,5,43,14],[43,16,43,20],[44,3,44,20],[45,3,45,20],[42,3,42,4],[42,5,42,14],[42,16,42,20]]}
[null,null,"Табель учета заработной платы монтажников"]
["ФИО",null,"Приезжев СП","ставка",350,null,null,{"$f":"TODAY()","v":"2015-07-28"}]
[null,null,"Иван",{"$f":"D2","v":"ставка"},250]
["тариф за услугу",null,null,"руб.",300,150,700,350,700,350,700,350,300,150,700,350,300,150,"штраф","деньги в кассе","примечания","совместно","менеджер"]
["№ пп","Дата","объект","кол-во точек","камеры",null,null,null,"микротик, сигнализация",null,"сотлайн, удаленка, стат IP",null,"ТО",null,"домофон",null,"исправление"]
[null,null,null,null,"демонтаж",null,"монтаж"]
[null,null,null,null,{"$f":"G7","v":"ЛО"},{"$f":"H7","v":"ГО"},"ЛО","ГО","ЛО","ГО",{"$f":"I7","v":"ЛО"},"ГО","ЛО","ГО","ЛО","ГО","ЛО","ГО"]
[1,"2015-07-01",{"$f":"Brigada1(B8,'Общий график монтажей'!B$2:B$188,'Общий график монтажей'!C$2:C$188,'Общий график монтажей'!Q$2:R$188)","v":"ООО \"Вымпел\", ИП Савин"}]
[2,"2015-07-02"]
[3,"2015-07-03",{"$f":"IFERROR(IF(VLOOKUP(B10,'[1]Общий график монтажей'!$B$3:$Q$189,16,FALSE)=\"Бригада 1\",VLOOKUP(B10,'[1]Общий график монтажей'!$B$3:$Q$189,2,FALSE),\" \"),\" \")","v":" "}]
[4,"2015-07-04",{"$f":"IFERROR(IF(VLOOKUP(B11,'[1]Общий график монтажей'!$B$3:$Q$189,16,FALSE)=\"Бригада 1\",VLOOKUP(B11,'[1]Общий график монтажей'!$B$3:$Q$189,2,FALSE),\" \"),\" \")","v":" "}]
[5,"2015-07-05",{"$f":"IFERROR(IF(VLOOKUP(B12,'[1]Общий график монтажей'!$B$3:$Q$189,16,FALSE)=\"Бригада 1\",VLOOKUP(B12,'[1]Общий график монтажей'!$B$3:$Q$189,2,FALSE),\" \"),\" \")","v":" "}]
[6,"2015-07-06",{"$f":"IFERROR(IF(VLOOKUP(B13,'[1]Общий график монтажей'!$B$3:$Q$189,16,FALSE)=\"Бригада 1\",VLOOKUP(B13,'[1]Общий график монтажей'!$B$3:$Q$189,2,FALSE),\" \"),\" \")","v":" "}]
[7,"2015-07-07",{"$f":"IFERROR(IF(VLOOKUP(B14,'[1]Общий график монтажей'!$B$3:$Q$189,16,FALSE)=\"Бригада 1\",VLOOKUP(B14,'[1]Общий график монтажей'!$B$3:$Q$189,2,FALSE),\" \"),\" \")","v":" "}]
[8,"2015-07-08",{"$f":"IFERROR(IF(VLOOKUP(B15,'[1]Общий график монтажей'!$B$3:$Q$189,16,FALSE)=\"Бригада 1\",VLOOKUP(B15,'[1]Общий график монтажей'!$B$3:$Q$189,2,FALSE),\" \"),\" \")","v":" "}]
[9,"2015-07-09",{"$f":"IFERROR(IF(VLOOKUP(B16,'[1]Общий график монтажей'!$B$3:$Q$189,16,FALSE)=\"Бригада 1\",VLOOKUP(B16,'[1]Общий график монтажей'!$B$3:$Q$189,2,FALSE),\" \"),\" \")","v":" "}]
[10,"2015-07-10",{"$f":"IFERROR(IF(VLOOKUP(B17,'[1]Общий график монтажей'!$B$3:$Q$189,16,FALSE)=\"Бригада 1\",VLOOKUP(B17,'[1]Общий график монтажей'!$B$3:$Q$189,2,FALSE),\" \"),\" \")","v":" "}]
[11,"2015-07-11",{"$f":"IFERROR(IF(VLOOKUP(B18,'[1]Общий график монтажей'!$B$3:$Q$189,16,FALSE)=\"Бригада 1\",VLOOKUP(B18,'[1]Общий график монтажей'!$B$3:$Q$189,2,FALSE),\" \"),\" \")","v":" "}]
[12,"2015-07-12",{"$f":"IFERROR(IF(VLOOKUP(B19,'[1]Общий график монтажей'!$B$3:$Q$189,16,FALSE)=\"Бригада 1\",VLOOKUP(B19,'[1]Общий график монтажей'!$B$3:$Q$189,2,FALSE),\" \"),\" \")","v":" "}]
[13,"2015-07-13",{"$f":"IFERROR(IF(VLOOKUP(B20,'[1]Общий график монтажей'!$B$3:$Q$189,16,FALSE)=\"Бригада 1\",VLOOKUP(B20,'[1]Общий график монтажей'!$B$3:$Q$189,2,FALSE),\" \"),\" \")","v":" "}]
[14,"2015-07-14",{"$f":"IFERROR(IF(VLOOKUP(B21,'[1]Общий график монтажей'!$B$3:$Q$189,16,FALSE)=\"Бригада 1\",VLOOKUP(B21,'[1]Общий график монтажей'!$B$3:$Q$189,2,FALSE),\" \"),\" \")","v":" "}]
[15,"2015-07-15",{"$f":"IFERROR(IF(VLOOKUP(B22,'[1]Общий график монтажей'!$B$3:$Q$189,16,FALSE)=\"Бригада 1\",VLOOKUP(B22,'[1]Общий график монтажей'!$B$3:$Q$189,2,FALSE),\" \"),\" \")","v":" "}]
[16,"2015-07-16",{"$f":"IFERROR(IF(VLOOKUP(B23,'[1]Общий график монтажей'!$B$3:$Q$189,16,FALSE)=\"Бригада 1\",VLOOKUP(B23,'[1]Общий график монтажей'!$B$3:$Q$189,2,FALSE),\" \"),\" \")","v":" "}]
[17,"2015-07-17",{"$f":"IFERROR(IF(VLOOKUP(B24,'[1]Общий график монтажей'!$B$3:$Q$189,16,FALSE)=\"Бригада 1\",VLOOKUP(B24,'[1]Общий график монтажей'!$B$3:$Q$189,2,FALSE),\" \"),\" \")","v":" "}]
[18,"2015-07-18",{"$f":"IFERROR(IF(VLOOKUP(B25,'[1]Общий график монтажей'!$B$3:$Q$189,16,FALSE)=\"Бригада 1\",VLOOKUP(B25,'[1]Общий график монтажей'!$B$3:$Q$189,2,FALSE),\" \"),\" \")","v":" "}]
[19,"2015-07-19",{"$f":"IFERROR(IF(VLOOKUP(B26,'[1]Общий график монтажей'!$B$3:$Q$189,16,FALSE)=\"Бригада 1\",VLOOKUP(B26,'[1]Общий график монтажей'!$B$3:$Q$189,2,FALSE),\" \"),\" \")","v":" "}]
[20,"2015-07-20",{"$f":"IFERROR(IF(VLOOKUP(B27,'[1]Общий график монтажей'!$B$3:$Q$189,16,FALSE)=\"Бригада 1\",VLOOKUP(B27,'[1]Общий график монтажей'!$B$3:$Q$189,2,FALSE),\" \"),\" \")","v":" "}]
[21,"2015-07-21",{"$f":"IFERROR(IF(VLOOKUP(B28,'[1]Общий график монтажей'!$B$3:$Q$189,16,FALSE)=\"Бригада 1\",VLOOKUP(B28,'[1]Общий график монтажей'!$B$3:$Q$189,2,FALSE),\" \"),\" \")","v":" "}]
[22,"2015-07-22",{"$f":"IFERROR(IF(VLOOKUP(B29,'[1]Общий график монтажей'!$B$3:$Q$189,16,FALSE)=\"Бригада 1\",VLOOKUP(B29,'[1]Общий график монтажей'!$B$3:$Q$189,2,FALSE),\" \"),\" \")","v":" "}]
[23,"2015-07-23",{"$f":"IFERROR(IF(VLOOKUP(B30,'[1]Общий график монтажей'!$B$3:$Q$189,16,FALSE)=\"Бригада 1\",VLOOKUP(B30,'[1]Общий график монтажей'!$B$3:$Q$189,2,FALSE),\" \"),\" \")","v":" "}]
[24,"2015-07-24",{"$f":"IFERROR(IF(VLOOKUP(B31,'[1]Общий график монтажей'!$B$3:$Q$189,16,FALSE)=\"Бригада 1\",VLOOKUP(B31,'[1]Общий график монтажей'!$B$3:$Q$189,2,FALSE),\" \"),\" \")","v":" "}]
[25,"2015-07-25",{"$f":"IFERROR(IF(VLOOKUP(B32,'[1]Общий график монтажей'!$B$3:$Q$189,16,FALSE)=\"Бригада 1\",VLOOKUP(B32,'[1]Общий график монтажей'!$B$3:$Q$189,2,FALSE),\" \"),\" \")","v":" "}]
[26,"2015-07-26",{"$f":"IFERROR(IF(VLOOKUP(B33,'[1]Общий график монтажей'!$B$3:$Q$189,16,FALSE)=\"Бригада 1\",VLOOKUP(B33,'[1]Общий график монтажей'!$B$3:$Q$189,2,FALSE),\" \"),\" \")","v":" "}]
[27,"2015-07-27",{"$f":"IFERROR(IF(VLOOKUP(B34,'[1]Общий график монтажей'!$B$3:$Q$189,16,FALSE)=\"Бригада 1\",VLOOKUP(B34,'[1]Общий график монтажей'!$B$3:$Q$189,2,FALSE),\" \"),\" \")","v":" "}]
[28,"2015-07-28",{"$f":"IFERROR(IF(VLOOKUP(B35,'[1]Общий график монтажей'!$B$3:$Q$189,16,FALSE)=\"Бригада 1\",VLOOKUP(B35,'[1]Общий график монтажей'!$B$3:$Q$189,2,FALSE),\" \"),\" \")","v":" "}]
[29,"2015-07-29",{"$f":"IFERROR(IF(VLOOKUP(B36,'[1]Общий график монтажей'!$B$3:$Q$189,16,FALSE)=\"Бригада 1\",VLOOKUP(B36,'[1]Общий график монтажей'!$B$3:$Q$189,2,FALSE),\" \"),\" \")","v":" "}]
[30,"2015-07-30",{"$f":"IFERROR(IF(VLOOKUP(B37,'[1]Общий график монтажей'!$B$3:$Q$189,16,FALSE)=\"Бригада 1\",VLOOKUP(B37,'[1]Общий график монтажей'!$B$3:$Q$189,2,FALSE),\" \"),\" \")","v":" "}]
[31,"2015-07-31",{"$f":"IFERROR(IF(VLOOKUP(B38,'[1]Общий график монтажей'!$B$3:$Q$189,16,FALSE)=\"Бригада 1\",VLOOKUP(B38,'[1]Общий график монтажей'!$B$3:$Q$189,2,FALSE),\" \"),\" \")","v":" "}]
[null,"личных из них",null,{"$f":"SUM(E39,G39,I39,K39,M39,O39,Q39)","v":0},{"$f":"SUM(E8:E38)*E4","v":0},null,{"$f":"SUM(G8:G38)*G4","v":0},null,{"$f":"SUM(I8:I38)*I4","v":0},null,{"$f":"SUM(K8:K38)*K4","v":0},null,{"$f":"SUM(M8:M38)*M4","v":0},null,{"$f":"SUM(O8:O38)*O4","v":0},null,{"$f":"SUM(Q8:Q37)*Q4","v":0},null,{"$f":"SUM(S8:S38)","v":0}]
[null,"общая зарплата бригады, руб",null,{"$f":"SUM(F40,H40,J40,L40,N40,P40,R40)","v":0},null,{"$f":"SUM(F8:F38)*(F4*2)","v":0},null,{"$f":"SUM(H8:H38)*H4*2","v":0},null,{"$f":"SUM(J8:J38)*J4*2","v":0},null,{"$f":"SUM(L8:L38)*L4*2","v":0},null,{"$f":"SUM(N8:N38)*N4*2","v":0},null,{"$f":"SUM(P8:P38)*P4*2","v":0},null,{"$f":"SUM(R8:R38)*R4*2","v":0},{"$f":"(D40/2+D39)-S39","v":0},{"$f":"SUM(T8:T39)","v":0}]
["ШТРАФЫ",null,null,null,null,null,null,null,null,null,null,null,null,null,null,null,null,null,{"$f":"S39","v":0}]
["выдача на руки",null,{"$f":"C2","v":"Приезжев СП"},{"$f":"S40","v":0},null,"с заработной платой ознакомлен претензий не имею ",null,null,null,null,null,null,null,null,null,"фио",null,null,null,null,null,"подпись"]
[{"$f":"A42","v":"выдача на руки"},null,"стажер Иван",{"$f":"D42*E3/350","v":0},null,{"$f":"F42","v":"с заработной платой ознакомлен претензий не имею "},null,null,null,null,null,null,null,null,null,{"$f":"P42","v":"фио"},null,null,null,null,null,{"$f":"V42","v":"подпись"}]
["выдача на руки",null,"стажер Дмитрий",null,null,{"$f":"F43","v":"с заработной платой ознакомлен претензий не имею "},null,null,null,null,null,null,null,null,null,"фио",null,null,null,null,null,"подпись"]
[null,null,"Составил Горбулин И.В."]
[null,null,"Утверждаю Елистратов П.В."]
[null,null,"Гл.бух. "]

{"sheet":"Бригада 2","index":2,"n_rows":47,"n_cols":23,"rows_kept":47,"cut":false,"hidden":false,"merged":[[4,10,5,11],[0,2,0,19],[1,0,2,1],[1,5,1,6],[1,7,1,12],[3,0,3,2],[3,18,6,18],[3,19,6,19],[4,12,5,13],[4,14,5,15],[4,16,5,17],[5,4,5,5],[5,6,5,7],[40,19,40,22],[38,0,39,0],[38,1,38,2],[39,1,39,2],[40,0,40,17],[3,20,6,20],[3,21,6,21],[3,22,6,22],[4,0,6,0],[4,1,6,1],[4,2,6,2],[4,3,6,3],[4,4,4,7],[4,8,5,9],[41,0,41,1],[41,3,41,4],[41,5,41,14],[41,16,41,20],[46,3,46,20],[43,0,43,1],[43,3,43,4],[43,5,43,14],[43,16,43,20],[44,3,44,20],[45,3,45,20],[42,3,42,4],[42,5,42,14],[42,16,42,20]]}
[null,null,"Табель учета заработной платы монтажников"]
["ФИО",null,"Приезжев СП","ставка",350,null,null,{"$f":"TODAY()","v":"2015-07-28"}]
[null,null,"Иван",{"$f":"D2","v":"ставка"},250]
["тариф за услугу",null,null,"руб.",300,150,700,350,700,350,700,350,300,150,700,350,300,150,"штраф","деньги в кассе","примечания","совместно","менеджер"]
["№ пп","Дата","объект","кол-во точек","камеры",null,null,null,"микротик, сигнализация",null,"сотлайн, удаленка, стат IP",null,"ТО",null,"домофон",null,"исправление"]
[null,null,null,null,"демонтаж",null,"монтаж"]
[null,null,null,null,{"$f":"G7","v":"ЛО"},{"$f":"H7","v":"ГО"},"ЛО","ГО","ЛО","ГО",{"$f":"I7","v":"ЛО"},"ГО","ЛО","ГО","ЛО","ГО","ЛО","ГО"]
[1,"2015-07-01",{"$f":"IFERROR(IF(VLOOKUP(B8,'[1]Общий график монтажей'!$B$3:$Q$189,16,FALSE)=\"Бригада 1\",VLOOKUP(B8,'[1]Общий график монтажей'!$B$3:$Q$189,2,FALSE),\" \"),\" \")","v":" "}]
[2,"2015-07-02",{"$f":"IFERROR(IF(VLOOKUP(B9,'[1]Общий график монтажей'!$B$3:$Q$189,16,FALSE)=\"Бригада 1\",VLOOKUP(B9,'[1]Общий график монтажей'!$B$3:$Q$189,2,FALSE),\" \"),\" \")","v":" "}]
[3,"2015-07-03",{"$f":"IFERROR(IF(VLOOKUP(B10,'[1]Общий график монтажей'!$B$3:$Q$189,16,FALSE)=\"Бригада 1\",VLOOKUP(B10,'[1]Общий график монтажей'!$B$3:$Q$189,2,FALSE),\" \"),\" \")","v":" "}]
[4,"2015-07-04",{"$f":"IFERROR(IF(VLOOKUP(B11,'[1]Общий график монтажей'!$B$3:$Q$189,16,FALSE)=\"Бригада 1\",VLOOKUP(B11,'[1]Общий график монтажей'!$B$3:$Q$189,2,FALSE),\" \"),\" \")","v":" "}]
[5,"2015-07-05",{"$f":"IFERROR(IF(VLOOKUP(B12,'[1]Общий график монтажей'!$B$3:$Q$189,16,FALSE)=\"Бригада 1\",VLOOKUP(B12,'[1]Общий график монтажей'!$B$3:$Q$189,2,FALSE),\" \"),\" \")","v":" "}]
[6,"2015-07-06",{"$f":"IFERROR(IF(VLOOKUP(B13,'[1]Общий график монтажей'!$B$3:$Q$189,16,FALSE)=\"Бригада 1\",VLOOKUP(B13,'[1]Общий график монтажей'!$B$3:$Q$189,2,FALSE),\" \"),\" \")","v":" "}]
[7,"2015-07-07",{"$f":"IFERROR(IF(VLOOKUP(B14,'[1]Общий график монтажей'!$B$3:$Q$189,16,FALSE)=\"Бригада 1\",VLOOKUP(B14,'[1]Общий график монтажей'!$B$3:$Q$189,2,FALSE),\" \"),\" \")","v":" "}]
[8,"2015-07-08",{"$f":"IFERROR(IF(VLOOKUP(B15,'[1]Общий график монтажей'!$B$3:$Q$189,16,FALSE)=\"Бригада 1\",VLOOKUP(B15,'[1]Общий график монтажей'!$B$3:$Q$189,2,FALSE),\" \"),\" \")","v":" "}]
[9,"2015-07-09",{"$f":"IFERROR(IF(VLOOKUP(B16,'[1]Общий график монтажей'!$B$3:$Q$189,16,FALSE)=\"Бригада 1\",VLOOKUP(B16,'[1]Общий график монтажей'!$B$3:$Q$189,2,FALSE),\" \"),\" \")","v":" "}]
[10,"2015-07-10",{"$f":"IFERROR(IF(VLOOKUP(B17,'[1]Общий график монтажей'!$B$3:$Q$189,16,FALSE)=\"Бригада 1\",VLOOKUP(B17,'[1]Общий график монтажей'!$B$3:$Q$189,2,FALSE),\" \"),\" \")","v":" "}]
[11,"2015-07-11",{"$f":"IFERROR(IF(VLOOKUP(B18,'[1]Общий график монтажей'!$B$3:$Q$189,16,FALSE)=\"Бригада 1\",VLOOKUP(B18,'[1]Общий график монтажей'!$B$3:$Q$189,2,FALSE),\" \"),\" \")","v":" "}]
[12,"2015-07-12",{"$f":"IFERROR(IF(VLOOKUP(B19,'[1]Общий график монтажей'!$B$3:$Q$189,16,FALSE)=\"Бригада 1\",VLOOKUP(B19,'[1]Общий график монтажей'!$B$3:$Q$189,2,FALSE),\" \"),\" \")","v":" "}]
[13,"2015-07-13",{"$f":"IFERROR(IF(VLOOKUP(B20,'[1]Общий график монтажей'!$B$3:$Q$189,16,FALSE)=\"Бригада 1\",VLOOKUP(B20,'[1]Общий график монтажей'!$B$3:$Q$189,2,FALSE),\" \"),\" \")","v":" "}]
[14,"2015-07-14",{"$f":"IFERROR(IF(VLOOKUP(B21,'[1]Общий график монтажей'!$B$3:$Q$189,16,FALSE)=\"Бригада 1\",VLOOKUP(B21,'[1]Общий график монтажей'!$B$3:$Q$189,2,FALSE),\" \"),\" \")","v":" "}]
[15,"2015-07-15",{"$f":"IFERROR(IF(VLOOKUP(B22,'[1]Общий график монтажей'!$B$3:$Q$189,16,FALSE)=\"Бригада 1\",VLOOKUP(B22,'[1]Общий график монтажей'!$B$3:$Q$189,2,FALSE),\" \"),\" \")","v":" "}]
[16,"2015-07-16",{"$f":"IFERROR(IF(VLOOKUP(B23,'[1]Общий график монтажей'!$B$3:$Q$189,16,FALSE)=\"Бригада 1\",VLOOKUP(B23,'[1]Общий график монтажей'!$B$3:$Q$189,2,FALSE),\" \"),\" \")","v":" "}]
[17,"2015-07-17",{"$f":"IFERROR(IF(VLOOKUP(B24,'[1]Общий график монтажей'!$B$3:$Q$189,16,FALSE)=\"Бригада 1\",VLOOKUP(B24,'[1]Общий график монтажей'!$B$3:$Q$189,2,FALSE),\" \"),\" \")","v":" "}]
[18,"2015-07-18",{"$f":"IFERROR(IF(VLOOKUP(B25,'[1]Общий график монтажей'!$B$3:$Q$189,16,FALSE)=\"Бригада 1\",VLOOKUP(B25,'[1]Общий график монтажей'!$B$3:$Q$189,2,FALSE),\" \"),\" \")","v":" "}]
[19,"2015-07-19",{"$f":"IFERROR(IF(VLOOKUP(B26,'[1]Общий график монтажей'!$B$3:$Q$189,16,FALSE)=\"Бригада 1\",VLOOKUP(B26,'[1]Общий график монтажей'!$B$3:$Q$189,2,FALSE),\" \"),\" \")","v":" "}]
[20,"2015-07-20",{"$f":"IFERROR(IF(VLOOKUP(B27,'[1]Общий график монтажей'!$B$3:$Q$189,16,FALSE)=\"Бригада 1\",VLOOKUP(B27,'[1]Общий график монтажей'!$B$3:$Q$189,2,FALSE),\" \"),\" \")","v":" "}]
[21,"2015-07-21",{"$f":"IFERROR(IF(VLOOKUP(B28,'[1]Общий график монтажей'!$B$3:$Q$189,16,FALSE)=\"Бригада 1\",VLOOKUP(B28,'[1]Общий график монтажей'!$B$3:$Q$189,2,FALSE),\" \"),\" \")","v":" "}]
[22,"2015-07-22",{"$f":"IFERROR(IF(VLOOKUP(B29,'[1]Общий график монтажей'!$B$3:$Q$189,16,FALSE)=\"Бригада 1\",VLOOKUP(B29,'[1]Общий график монтажей'!$B$3:$Q$189,2,FALSE),\" \"),\" \")","v":" "}]
[23,"2015-07-23",{"$f":"IFERROR(IF(VLOOKUP(B30,'[1]Общий график монтажей'!$B$3:$Q$189,16,FALSE)=\"Бригада 1\",VLOOKUP(B30,'[1]Общий график монтажей'!$B$3:$Q$189,2,FALSE),\" \"),\" \")","v":" "}]
[24,"2015-07-24",{"$f":"IFERROR(IF(VLOOKUP(B31,'[1]Общий график монтажей'!$B$3:$Q$189,16,FALSE)=\"Бригада 1\",VLOOKUP(B31,'[1]Общий график монтажей'!$B$3:$Q$189,2,FALSE),\" \"),\" \")","v":" "}]
[25,"2015-07-25",{"$f":"IFERROR(IF(VLOOKUP(B32,'[1]Общий график монтажей'!$B$3:$Q$189,16,FALSE)=\"Бригада 1\",VLOOKUP(B32,'[1]Общий график монтажей'!$B$3:$Q$189,2,FALSE),\" \"),\" \")","v":" "}]
[26,"2015-07-26",{"$f":"IFERROR(IF(VLOOKUP(B33,'[1]Общий график монтажей'!$B$3:$Q$189,16,FALSE)=\"Бригада 1\",VLOOKUP(B33,'[1]Общий график монтажей'!$B$3:$Q$189,2,FALSE),\" \"),\" \")","v":" "}]
[27,"2015-07-27",{"$f":"IFERROR(IF(VLOOKUP(B34,'[1]Общий график монтажей'!$B$3:$Q$189,16,FALSE)=\"Бригада 1\",VLOOKUP(B34,'[1]Общий график монтажей'!$B$3:$Q$189,2,FALSE),\" \"),\" \")","v":" "}]
[28,"2015-07-28",{"$f":"IFERROR(IF(VLOOKUP(B35,'[1]Общий график монтажей'!$B$3:$Q$189,16,FALSE)=\"Бригада 1\",VLOOKUP(B35,'[1]Общий график монтажей'!$B$3:$Q$189,2,FALSE),\" \"),\" \")","v":" "}]
[29,"2015-07-29",{"$f":"IFERROR(IF(VLOOKUP(B36,'[1]Общий график монтажей'!$B$3:$Q$189,16,FALSE)=\"Бригада 1\",VLOOKUP(B36,'[1]Общий график монтажей'!$B$3:$Q$189,2,FALSE),\" \"),\" \")","v":" "}]
[30,"2015-07-30",{"$f":"IFERROR(IF(VLOOKUP(B37,'[1]Общий график монтажей'!$B$3:$Q$189,16,FALSE)=\"Бригада 1\",VLOOKUP(B37,'[1]Общий график монтажей'!$B$3:$Q$189,2,FALSE),\" \"),\" \")","v":" "}]
[31,"2015-07-31",{"$f":"IFERROR(IF(VLOOKUP(B38,'[1]Общий график монтажей'!$B$3:$Q$189,16,FALSE)=\"Бригада 1\",VLOOKUP(B38,'[1]Общий график монтажей'!$B$3:$Q$189,2,FALSE),\" \"),\" \")","v":" "}]
[null,"личных из них",null,{"$f":"SUM(E39,G39,I39,K39,M39,O39,Q39)","v":0},{"$f":"SUM(E8:E38)*E4","v":0},null,{"$f":"SUM(G8:G38)*G4","v":0},null,{"$f":"SUM(I8:I38)*I4","v":0},null,{"$f":"SUM(K8:K38)*K4","v":0},null,{"$f":"SUM(M8:M38)*M4","v":0},null,{"$f":"SUM(O8:O38)*O4","v":0},null,{"$f":"SUM(Q8:Q37)*Q4","v":0},null,{"$f":"SUM(S8:S38)","v":0}]
[null,"общая зарплата бригады, руб",null,{"$f":"SUM(F40,H40,J40,L40,N40,P40,R40)","v":0},null,{"$f":"SUM(F8:F38)*(F4*2)","v":0},null,{"$f":"SUM(H8:H38)*H4*2","v":0},null,{"$f":"SUM(J8:J38)*J4*2","v":0},null,{"$f":"SUM(L8:L38)*L4*2","v":0},null,{"$f":"SUM(N8:N38)*N4*2","v":0},null,{"$f":"SUM(P8:P38)*P4*2","v":0},null,{"$f":"SUM(R8:R38)*R4*2","v":0},{"$f":"(D40/2+D39)-S39","v":0},{"$f":"SUM(T8:T39)","v":0}]
["ШТРАФЫ",null,null,null,null,null,null,null,null,null,null,null,null,null,null,null,null,null,{"$f":"S39","v":0}]
["выдача на руки",null,{"$f":"C2","v":"Приезжев СП"},{"$f":"S40","v":0},null,"с заработной платой ознакомлен претензий не имею ",null,null,null,null,null,null,null,null,null,"фио",null,null,null,null,null,"подпись"]
[{"$f":"A42","v":"выдача на руки"},null,"стажер Иван",{"$f":"D42*E3/350","v":0},null,{"$f":"F42","v":"с заработной платой ознакомлен претензий не имею "},null,null,null,null,null,null,null,null,null,{"$f":"P42","v":"фио"},null,null,null,null,null,{"$f":"V42","v":"подпись"}]
["выдача на руки",null,"стажер Дмитрий",null,null,{"$f":"F43","v":"с заработной платой ознакомлен претензий не имею "},null,null,null,null,null,null,null,null,null,"фио",null,null,null,null,null,"подпись"]
[null,null,"Составил Горбулин И.В."]
[null,null,"Утверждаю Елистратов П.В."]
[null,null,"Гл.бух. "]